[Event "*** Titled Tuesday Blitz"]
[Site "Chess.com"]
[Date "2021.04.20"]
[Round "7"]
[White "LenkaPtacnikova"]
[Black "Mbneu"]
[Result "1-0"]
[WhiteElo "2176"]
[BlackElo "2305"]
[TimeControl "180+1"]
[EndTime "11:17:13 PDT"]
[Termination "LenkaPtacnikova won on time"]

1. c4 {[%clk 0:02:59.8]} 1... Nf6 {[%clk 0:02:59.3]} 2. g3 {[%clk 0:02:59.1]}
2... c5 {[%clk 0:02:57.2]} 3. Bg2 {[%clk 0:02:59]} 3... e6 {[%clk 0:02:57.8]} 4.
Nf3 {[%clk 0:02:58.3]} 4... d5 {[%clk 0:02:58.4]} 5. d4 {[%clk 0:02:57.8]} 5...
Nc6 {[%clk 0:02:57.7]} 6. O-O {[%clk 0:02:56.3]} 6... Be7 {[%clk 0:02:57.4]} 7.
dxc5 {[%clk 0:02:51.8]} 7... Bxc5 {[%clk 0:02:56.4]} 8. cxd5 {[%clk 0:02:51.8]}
8... exd5 {[%clk 0:02:57.3]} 9. Bg5 {[%clk 0:02:49.8]} 9... O-O {[%clk
0:02:54.9]} 10. Nc3 {[%clk 0:02:41.8]} 10... d4 {[%clk 0:02:54.3]} 11. Bxf6
{[%clk 0:02:38.8]} 11... Qxf6 {[%clk 0:02:53.4]} 12. Ne4 {[%clk 0:02:38.7]}
12... Qe7 {[%clk 0:02:47.6]} 13. Nxc5 {[%clk 0:02:38.5]} 13... Qxc5 {[%clk
0:02:47.2]} 14. Rc1 {[%clk 0:02:31.4]} 14... Qb6 {[%clk 0:02:46]} 15. Qd2 {[%clk
0:02:24.2]} 15... Bg4 {[%clk 0:02:26.7]} 16. Rfd1 {[%clk 0:02:17.6]} 16... Rad8
{[%clk 0:02:22.7]} 17. h3 {[%clk 0:02:16.6]} 17... Bh5 {[%clk 0:02:21.9]} 18.
Ne1 {[%clk 0:02:16]} 18... Rfe8 {[%clk 0:02:19.8]} 19. g4 {[%clk 0:02:07]} 19...
Bg6 {[%clk 0:02:17.7]} 20. Nd3 {[%clk 0:02:06]} 20... Be4 {[%clk 0:02:13]} 21.
f3 {[%clk 0:02:04.5]} 21... Bd5 {[%clk 0:02:09.4]} 22. Kh2 {[%clk 0:02:02.2]}
22... Re3 {[%clk 0:02:05]} 23. Nf4 {[%clk 0:01:58]} 23... Bc4 {[%clk 0:02:04.1]}
24. b3 {[%clk 0:01:56.2]} 24... Ba6 {[%clk 0:01:58]} 25. Bf1 {[%clk 0:01:38]}
25... h6 {[%clk 0:01:41]} 26. Ng2 {[%clk 0:01:36.3]} 26... Ree8 {[%clk
0:01:30.6]} 27. h4 {[%clk 0:01:11.9]} 27... Ne5 {[%clk 0:01:27.9]} 28. Kg3
{[%clk 0:01:07.8]} 28... Qd6 {[%clk 0:01:14]} 29. f4 {[%clk 0:01:04.7]} 29...
Ng6 {[%clk 0:01:03.3]} 30. h5 {[%clk 0:00:58.7]} 30... Re3+ {[%clk 0:00:25.1]}
31. Qxe3 {[%clk 0:00:52.3]} 31... dxe3 {[%clk 0:00:19]} 32. Rxd6 {[%clk
0:00:51.6]} 32... Rxd6 {[%clk 0:00:17.9]} 33. hxg6 {[%clk 0:00:50.8]} 33... Rxg6
{[%clk 0:00:13.6]} 34. Nxe3 {[%clk 0:00:48.2]} 34... h5 {[%clk 0:00:13.1]} 35.
g5 {[%clk 0:00:40.4]} 35... f6 {[%clk 0:00:11.8]} 36. Kh4 {[%clk 0:00:36.1]}
36... fxg5+ {[%clk 0:00:11.4]} 37. fxg5 {[%clk 0:00:35.7]} 37... Re6 {[%clk
0:00:08.6]} 38. Nc4 {[%clk 0:00:31.5]} 38... g6 {[%clk 0:00:08]} 39. e3 {[%clk
0:00:18.5]} 39... b5 {[%clk 0:00:07]} 40. Nd2 {[%clk 0:00:14.5]} 40... Rxe3
{[%clk 0:00:06.4]} 41. Rc6 {[%clk 0:00:13.5]} 41... Bb7 {[%clk 0:00:05.9]} 42.
Rxg6+ {[%clk 0:00:13.1]} 42... Kf7 {[%clk 0:00:05.4]} 43. Rf6+ {[%clk
0:00:13.3]} 43... Ke7 {[%clk 0:00:05.9]} 44. Kxh5 {[%clk 0:00:12]} 44... Rg3
{[%clk 0:00:02]} 45. Kh4 {[%clk 0:00:10.7]} 45... Rg1 {[%clk 0:00:01.6]} 46. Rf4
{[%clk 0:00:06]} 1-0

[Event "*** Titled Tuesday Blitz"]
[Site "Chess.com"]
[Date "2021.04.20"]
[Round "7"]
[White "AnnaChessLook"]
[Black "mr65"]
[Result "0-1"]
[WhiteElo "2236"]
[BlackElo "2136"]
[TimeControl "180+1"]
[EndTime "11:17:14 PDT"]
[Termination "mr65 won by checkmate"]

1. d4 {[%clk 0:03:00.9]} 1... Nf6 {[%clk 0:02:58.9]} 2. c4 {[%clk 0:02:59.7]}
2... g6 {[%clk 0:02:58.9]} 3. Nc3 {[%clk 0:02:58.9]} 3... Bg7 {[%clk 0:02:58.9]}
4. e4 {[%clk 0:02:58.7]} 4... d6 {[%clk 0:02:58.8]} 5. Be2 {[%clk 0:02:58.8]}
5... O-O {[%clk 0:02:58.4]} 6. Be3 {[%clk 0:02:58.9]} 6... e5 {[%clk 0:02:54.5]}
7. d5 {[%clk 0:02:58.6]} 7... a5 {[%clk 0:02:52.9]} 8. g4 {[%clk 0:02:54.9]}
8... Na6 {[%clk 0:02:51.1]} 9. h4 {[%clk 0:02:52.7]} 9... Nc5 {[%clk 0:02:45.4]}
10. f3 {[%clk 0:02:52.1]} 10... b6 {[%clk 0:02:42.4]} 11. h5 {[%clk 0:02:46.8]}
11... Bd7 {[%clk 0:02:39]} 12. Qd2 {[%clk 0:02:42.7]} 12... Ne8 {[%clk
0:02:33.8]} 13. O-O-O {[%clk 0:02:25.5]} 13... a4 {[%clk 0:02:25.2]} 14. hxg6
{[%clk 0:02:16.7]} 14... fxg6 {[%clk 0:02:23.7]} 15. Bh6 {[%clk 0:02:06.2]}
15... Bf6 {[%clk 0:02:23.4]} 16. Nh3 {[%clk 0:01:54.4]} 16... Ng7 {[%clk
0:02:21.2]} 17. Ng5 {[%clk 0:01:46.1]} 17... Bxg5 {[%clk 0:02:14.2]} 18. Bxg5
{[%clk 0:01:44.8]} 18... Qe8 {[%clk 0:02:13.2]} 19. Qe1 {[%clk 0:01:31.2]} 19...
Qf7 {[%clk 0:02:05.7]} 20. Qh4 {[%clk 0:01:30.5]} 20... Ne8 {[%clk 0:02:03.9]}
21. Rh2 {[%clk 0:01:21.4]} 21... a3 {[%clk 0:01:45.2]} 22. b3 {[%clk 0:01:17.3]}
22... c6 {[%clk 0:01:42]} 23. Rdh1 {[%clk 0:01:13.8]} 23... b5 {[%clk
0:01:35.8]} 24. Qxh7+ {[%clk 0:01:01]} 24... Qxh7 {[%clk 0:01:33.8]} 25. Rxh7
{[%clk 0:01:01.9]} 25... b4 {[%clk 0:01:24.6]} 26. dxc6 {[%clk 0:01:01.9]} 26...
Bxc6 {[%clk 0:01:22.6]} 27. Nd5 {[%clk 0:00:53.3]} 27... Bxd5 {[%clk 0:01:21.4]}
28. exd5 {[%clk 0:00:41.7]} 28... e4 {[%clk 0:00:56.2]} 29. Be7 {[%clk 0:00:23]}
29... exf3 {[%clk 0:00:35.8]} 30. Rh8+ {[%clk 0:00:22.7]} 30... Kf7 {[%clk
0:00:32.4]} 31. Rxf8+ {[%clk 0:00:23]} 31... Kxe7 {[%clk 0:00:30.5]} 32. Rxf3
{[%clk 0:00:23.9]} 32... Nf6 {[%clk 0:00:22.6]} 33. g5 {[%clk 0:00:22.6]} 33...
Nh5 {[%clk 0:00:20.5]} 34. Re3+ {[%clk 0:00:22.4]} 34... Kd7 {[%clk 0:00:19.4]}
35. Bxh5 {[%clk 0:00:22.6]} 35... gxh5 {[%clk 0:00:18.8]} 36. Rxh5 {[%clk
0:00:23.3]} 36... Rf8 {[%clk 0:00:17.6]} 37. Rh7+ {[%clk 0:00:23.6]} 37... Kc8
{[%clk 0:00:17]} 38. Re2 {[%clk 0:00:21.3]} 38... Kd8 {[%clk 0:00:15.4]} 39. g6
{[%clk 0:00:20.5]} 39... Rf1+ {[%clk 0:00:14.1]} 40. Kd2 {[%clk 0:00:19.8]}
40... Nxb3+ {[%clk 0:00:11.3]} 41. axb3 {[%clk 0:00:18.5]} 41... a2 {[%clk
0:00:11.2]} 42. g7 {[%clk 0:00:19]} 42... Rg1 {[%clk 0:00:11.2]} 43. Rh8+ {[%clk
0:00:17.5]} 43... Kc7 {[%clk 0:00:10.9]} 44. g8=Q {[%clk 0:00:17.8]} 44... Rxg8
{[%clk 0:00:09.3]} 45. Rxg8 {[%clk 0:00:18.7]} 45... a1=Q {[%clk 0:00:08.9]} 46.
Re7+ {[%clk 0:00:18.7]} 46... Kb6 {[%clk 0:00:09]} 47. Rb8+ {[%clk 0:00:18.6]}
47... Kc5 {[%clk 0:00:08.9]} 48. Rb5+ {[%clk 0:00:17.4]} 48... Kd4 {[%clk
0:00:08]} 49. Rxb4 {[%clk 0:00:17.7]} 49... Qb2+ {[%clk 0:00:06.2]} 50. Kd1
{[%clk 0:00:17.4]} 50... Kc3 {[%clk 0:00:06]} 51. Rb5 {[%clk 0:00:17.1]} 51...
Qd2# {[%clk 0:00:05.1]} 0-1

[Event "*** Titled Tuesday Blitz"]
[Site "Chess.com"]
[Date "2021.04.20"]
[Round "7"]
[White "szachuspl"]
[Black "Irishchessman16"]
[Result "0-1"]
[WhiteElo "2512"]
[BlackElo "2288"]
[TimeControl "180+1"]
[EndTime "11:17:16 PDT"]
[Termination "Irishchessman16 won by checkmate"]

1. d4 {[%clk 0:02:50.7]} 1... d5 {[%clk 0:02:56.4]} 2. c4 {[%clk 0:02:49.9]}
2... c6 {[%clk 0:02:56.1]} 3. cxd5 {[%clk 0:02:48.4]} 3... cxd5 {[%clk 0:02:57]}
4. Bg5 {[%clk 0:02:48.6]} 4... f6 {[%clk 0:02:54.1]} 5. Bh4 {[%clk 0:02:46.3]}
5... e6 {[%clk 0:02:47.3]} 6. Nc3 {[%clk 0:02:45.6]} 6... Nc6 {[%clk 0:02:46.8]}
7. Nf3 {[%clk 0:02:43.3]} 7... Bd6 {[%clk 0:02:46.4]} 8. e4 {[%clk 0:02:41.8]}
8... dxe4 {[%clk 0:02:46]} 9. Nxe4 {[%clk 0:02:41.9]} 9... Nge7 {[%clk
0:02:46.5]} 10. Nxd6+ {[%clk 0:02:35.1]} 10... Qxd6 {[%clk 0:02:46.3]} 11. Bg3
{[%clk 0:02:35.3]} 11... Qd5 {[%clk 0:02:41.4]} 12. Be2 {[%clk 0:02:31.7]} 12...
Qa5+ {[%clk 0:02:41.1]} 13. Qd2 {[%clk 0:02:31]} 13... Qxd2+ {[%clk 0:02:41]}
14. Kxd2 {[%clk 0:02:31.3]} 14... Kf7 {[%clk 0:02:40.1]} 15. Rhd1 {[%clk
0:02:30.1]} 15... b6 {[%clk 0:02:38.7]} 16. Rac1 {[%clk 0:02:29.1]} 16... Bb7
{[%clk 0:02:37.5]} 17. Ke1 {[%clk 0:02:28.8]} 17... Rhd8 {[%clk 0:02:37.2]} 18.
Bc4 {[%clk 0:02:21.8]} 18... Na5 {[%clk 0:02:25]} 19. Be2 {[%clk 0:02:20.6]}
19... Rac8 {[%clk 0:02:17.6]} 20. Bf4 {[%clk 0:02:12.6]} 20... Bd5 {[%clk
0:02:13.6]} 21. b3 {[%clk 0:02:10.8]} 21... Nec6 {[%clk 0:02:05.4]} 22. Be3
{[%clk 0:01:59.1]} 22... Nb4 {[%clk 0:02:04.5]} 23. Rxc8 {[%clk 0:01:10.7]}
23... Rxc8 {[%clk 0:02:03.6]} 24. Bd2 {[%clk 0:01:11.4]} 24... Nxa2 {[%clk
0:01:58]} 25. Bxa5 {[%clk 0:01:10.9]} 25... bxa5 {[%clk 0:01:58.9]} 26. Nd2
{[%clk 0:01:05]} 26... Rc2 {[%clk 0:01:50.7]} 27. Bc4 {[%clk 0:00:54.7]} 27...
Bxg2 {[%clk 0:01:45.4]} 28. Ra1 {[%clk 0:00:46.6]} 28... Nc3 {[%clk 0:01:28.5]}
29. f3 {[%clk 0:00:40.3]} 29... Bh3 {[%clk 0:01:11.7]} 30. Rxa5 {[%clk
0:00:39.2]} 30... Nd5 {[%clk 0:00:48.9]} 31. Rxa7+ {[%clk 0:00:38.9]} 31... Kf8
{[%clk 0:00:49.2]} 32. Kd1 {[%clk 0:00:29]} 32... Rc3 {[%clk 0:00:44.4]} 33. Ke2
{[%clk 0:00:24.3]} 33... Nf4+ {[%clk 0:00:40.5]} 34. Kf2 {[%clk 0:00:23.1]}
34... Rc2 {[%clk 0:00:36.6]} 35. Ke3 {[%clk 0:00:22.5]} 35... Ng2+ {[%clk
0:00:33.4]} 36. Kd3 {[%clk 0:00:22.2]} 36... Bf5+ {[%clk 0:00:33.6]} 37. Ke2
{[%clk 0:00:21.7]} 37... Nf4+ {[%clk 0:00:19.8]} 38. Ke3 {[%clk 0:00:22]} 38...
g5 {[%clk 0:00:19.1]} 39. Ne4 {[%clk 0:00:20.2]} 39... Ng2+ {[%clk 0:00:14.2]}
40. Kd3 {[%clk 0:00:20.3]} 40... Ne1+ {[%clk 0:00:14.2]} 41. Ke3 {[%clk
0:00:20]} 41... Bxe4 {[%clk 0:00:07.6]} 42. fxe4 {[%clk 0:00:19.3]} 42... Ng2+
{[%clk 0:00:07.9]} 43. Kf3 {[%clk 0:00:19.4]} 43... Nh4+ {[%clk 0:00:07.5]} 44.
Kg3 {[%clk 0:00:19.4]} 44... Rg2+ {[%clk 0:00:07.3]} 45. Kh3 {[%clk 0:00:18.9]}
45... h5 {[%clk 0:00:07.3]} 46. Bxe6 {[%clk 0:00:17.5]} 46... Re2 {[%clk
0:00:06.2]} 47. Rf7+ {[%clk 0:00:16.3]} 47... Ke8 {[%clk 0:00:06.6]} 48. Rxf6
{[%clk 0:00:16.8]} 48... Re3+ {[%clk 0:00:06.5]} 49. Rf3 {[%clk 0:00:04.4]}
49... Rxf3# {[%clk 0:00:06.4]} 0-1

[Event "*** Titled Tuesday Blitz"]
[Site "Chess.com"]
[Date "2021.04.20"]
[Round "7"]
[White "kidagent"]
[Black "Michaelson_11"]
[Result "0-1"]
[WhiteElo "2329"]
[BlackElo "2229"]
[TimeControl "180+1"]
[EndTime "11:17:16 PDT"]
[Termination "Michaelson_11 won by resignation"]

1. e4 {[%clk 0:03:00.9]} 1... c5 {[%clk 0:02:59.9]} 2. Nf3 {[%clk 0:03:01.2]}
2... Nc6 {[%clk 0:03:00.8]} 3. d4 {[%clk 0:03:01.2]} 3... cxd4 {[%clk
0:03:01.7]} 4. Nxd4 {[%clk 0:03:01.9]} 4... Nf6 {[%clk 0:03:02.1]} 5. Nc3 {[%clk
0:03:01.8]} 5... g6 {[%clk 0:03:01.1]} 6. Be3 {[%clk 0:02:56.8]} 6... Bg7 {[%clk
0:03:00.9]} 7. Be2 {[%clk 0:02:55.9]} 7... O-O {[%clk 0:02:59.1]} 8. Nb3 {[%clk
0:02:56.1]} 8... d6 {[%clk 0:02:47.4]} 9. O-O {[%clk 0:02:56.6]} 9... a5 {[%clk
0:02:41.7]} 10. a3 {[%clk 0:02:53.4]} 10... a4 {[%clk 0:02:37.9]} 11. Nd2 {[%clk
0:02:48.7]} 11... d5 {[%clk 0:02:36.5]} 12. exd5 {[%clk 0:02:44]} 12... Nxd5
{[%clk 0:02:37.4]} 13. Nxd5 {[%clk 0:02:43.7]} 13... Qxd5 {[%clk 0:02:38.3]} 14.
c3 {[%clk 0:02:39.6]} 14... Bf5 {[%clk 0:02:25.1]} 15. Bc4 {[%clk 0:02:34.3]}
15... Qd6 {[%clk 0:02:03.7]} 16. Re1 {[%clk 0:02:15.9]} 16... Rfd8 {[%clk
0:01:52.3]} 17. Qe2 {[%clk 0:02:10.5]} 17... Bd3 {[%clk 0:01:47.1]} 18. Bxd3
{[%clk 0:02:05.2]} 18... Qxd3 {[%clk 0:01:48]} 19. Nf3 {[%clk 0:01:54.4]} 19...
Qxe2 {[%clk 0:01:39.3]} 20. Rxe2 {[%clk 0:01:54.3]} 20... Rd3 {[%clk 0:01:38.2]}
21. Rd2 {[%clk 0:01:47]} 21... Rad8 {[%clk 0:01:36.9]} 22. Rad1 {[%clk
0:01:46.4]} 22... Rxd2 {[%clk 0:01:33.8]} 23. Rxd2 {[%clk 0:01:46.4]} 23... Rxd2
{[%clk 0:01:33.4]} 24. Nxd2 {[%clk 0:01:46.9]} 24... Ne5 {[%clk 0:01:28.6]} 25.
b3 {[%clk 0:00:58.2]} 25... axb3 {[%clk 0:01:06.9]} 26. Nxb3 {[%clk 0:00:59.1]}
26... Nc4 {[%clk 0:01:07.4]} 27. Bc5 {[%clk 0:00:53.9]} 27... Bxc3 {[%clk
0:00:46.5]} 28. Bxe7 {[%clk 0:00:53.1]} 28... b5 {[%clk 0:00:47.1]} 29. Kf1
{[%clk 0:00:43]} 29... Bb2 {[%clk 0:00:35.9]} 30. Ke2 {[%clk 0:00:34.4]} 30...
Nxa3 {[%clk 0:00:20.6]} 31. Kd3 {[%clk 0:00:32.8]} 31... Nc4 {[%clk 0:00:20.6]}
32. Nd4 {[%clk 0:00:26.3]} 32... Ne5+ {[%clk 0:00:20.2]} 33. Ke4 {[%clk
0:00:25.4]} 33... Bxd4 {[%clk 0:00:20.1]} 34. Kxd4 {[%clk 0:00:21.4]} 34... Nc6+
{[%clk 0:00:20.1]} 35. Kc5 {[%clk 0:00:22.1]} 35... Nxe7 {[%clk 0:00:21]} 36.
Kxb5 {[%clk 0:00:22.4]} 36... Kg7 {[%clk 0:00:20.7]} 37. Kc5 {[%clk 0:00:21.9]}
37... Kf6 {[%clk 0:00:20.9]} 38. Kd4 {[%clk 0:00:21.9]} 38... Ke6 {[%clk
0:00:20.8]} 39. Ke4 {[%clk 0:00:21.8]} 39... f5+ {[%clk 0:00:21.2]} 40. Kf4
{[%clk 0:00:21.8]} 40... h6 {[%clk 0:00:21.6]} 41. h4 {[%clk 0:00:21.8]} 41...
Nd5+ {[%clk 0:00:21.7]} 42. Kg3 {[%clk 0:00:20.4]} 42... Ke5 {[%clk 0:00:21]}
43. f3 {[%clk 0:00:19]} 43... Nf6 {[%clk 0:00:20.3]} 44. Kh3 {[%clk 0:00:18.3]}
44... Kf4 {[%clk 0:00:20.2]} 45. Kh2 {[%clk 0:00:18.3]} 45... Nh5 {[%clk
0:00:14.5]} 46. Kh3 {[%clk 0:00:17.8]} 46... Ke3 {[%clk 0:00:14.8]} 47. g4
{[%clk 0:00:17.4]} 47... Nf4+ {[%clk 0:00:13.4]} 48. Kg3 {[%clk 0:00:17.7]}
48... Ne2+ {[%clk 0:00:12.8]} 49. Kh3 {[%clk 0:00:18.2]} 49... Kxf3 {[%clk
0:00:12.6]} 50. gxf5 {[%clk 0:00:17.1]} 50... gxf5 {[%clk 0:00:13.5]} 51. h5
{[%clk 0:00:17.2]} 51... Nf4+ {[%clk 0:00:13.4]} 52. Kh2 {[%clk 0:00:18.1]}
52... Nxh5 {[%clk 0:00:13.3]} 53. Kh1 {[%clk 0:00:18.4]} 53... Kg3 {[%clk
0:00:12.9]} 54. Kg1 {[%clk 0:00:18.6]} 54... f4 {[%clk 0:00:13.4]} 55. Kh1
{[%clk 0:00:19.5]} 55... f3 {[%clk 0:00:13.6]} 56. Kg1 {[%clk 0:00:20.4]} 56...
f2+ {[%clk 0:00:13.6]} 57. Kf1 {[%clk 0:00:20.5]} 57... Nf6 {[%clk 0:00:13.6]}
58. Ke2 {[%clk 0:00:20.3]} 58... Kg2 {[%clk 0:00:14.1]} 0-1

[Event "*** Titled Tuesday Blitz"]
[Site "Chess.com"]
[Date "2021.04.20"]
[Round "7"]
[White "davigator"]
[Black "iulik86"]
[Result "1-0"]
[WhiteElo "2438"]
[BlackElo "2561"]
[TimeControl "180+1"]
[EndTime "11:17:19 PDT"]
[Termination "davigator won by resignation"]

1. e4 {[%clk 0:03:00.9]} 1... c5 {[%clk 0:02:59.2]} 2. Nf3 {[%clk 0:02:57.7]}
2... Nc6 {[%clk 0:02:59.4]} 3. d4 {[%clk 0:02:57.7]} 3... cxd4 {[%clk
0:02:59.4]} 4. Nxd4 {[%clk 0:02:58.2]} 4... Nf6 {[%clk 0:03:00]} 5. Nc3 {[%clk
0:02:58.3]} 5... d6 {[%clk 0:03:00.4]} 6. Bg5 {[%clk 0:02:56.3]} 6... e6 {[%clk
0:03:00.6]} 7. f3 {[%clk 0:02:55.8]} 7... a6 {[%clk 0:02:53.5]} 8. Qd2 {[%clk
0:02:55.4]} 8... h6 {[%clk 0:02:53.1]} 9. Be3 {[%clk 0:02:54.9]} 9... Ne5 {[%clk
0:02:51.1]} 10. O-O-O {[%clk 0:02:54.5]} 10... Bd7 {[%clk 0:02:51.3]} 11. g4
{[%clk 0:02:53.9]} 11... b5 {[%clk 0:02:51.3]} 12. a3 {[%clk 0:02:52.8]} 12...
Qb8 {[%clk 0:02:39.6]} 13. Kb1 {[%clk 0:02:28.9]} 13... b4 {[%clk 0:02:34.3]}
14. axb4 {[%clk 0:02:28.8]} 14... Qxb4 {[%clk 0:02:34.5]} 15. Nd5 {[%clk
0:02:28.8]} 15... Qxd2 {[%clk 0:02:32.5]} 16. Nxf6+ {[%clk 0:02:28.8]} 16...
gxf6 {[%clk 0:02:33.4]} 17. Rxd2 {[%clk 0:02:28.6]} 17... h5 {[%clk 0:02:25.2]}
18. g5 {[%clk 0:02:22]} 18... Be7 {[%clk 0:02:21.1]} 19. gxf6 {[%clk 0:02:12.9]}
19... Bxf6 {[%clk 0:02:21.1]} 20. h4 {[%clk 0:02:13.1]} 20... Rg8 {[%clk
0:02:16.4]} 21. Be2 {[%clk 0:02:02.8]} 21... Rg2 {[%clk 0:02:06.1]} 22. Kc1
{[%clk 0:01:59.7]} 22... Ke7 {[%clk 0:02:04]} 23. Bf1 {[%clk 0:01:56.8]} 23...
Rxd2 {[%clk 0:01:49.5]} 24. Kxd2 {[%clk 0:01:56]} 24... a5 {[%clk 0:01:50.4]}
25. Be2 {[%clk 0:01:52.4]} 25... Rb8 {[%clk 0:01:38.4]} 26. b3 {[%clk
0:01:51.7]} 26... a4 {[%clk 0:01:38.2]} 27. bxa4 {[%clk 0:01:50.1]} 27... Bxa4
{[%clk 0:01:36.3]} 28. f4 {[%clk 0:01:50]} 28... Ng4 {[%clk 0:01:35.6]} 29. Bxg4
{[%clk 0:01:49.6]} 29... hxg4 {[%clk 0:01:36.5]} 30. h5 {[%clk 0:01:50.1]} 30...
Rh8 {[%clk 0:01:25.6]} 31. c4 {[%clk 0:01:42.9]} 31... Bd7 {[%clk 0:01:23.4]}
32. Ne2 {[%clk 0:01:40]} 32... Rc8 {[%clk 0:01:19.2]} 33. Kd3 {[%clk 0:01:38.9]}
33... Ra8 {[%clk 0:01:17.7]} 34. Bd4 {[%clk 0:01:34.3]} 34... e5 {[%clk
0:01:16.1]} 35. fxe5 {[%clk 0:01:33.5]} 35... dxe5 {[%clk 0:01:16.2]} 36. Bc5+
{[%clk 0:01:33.3]} 36... Ke6 {[%clk 0:01:09.2]} 37. h6 {[%clk 0:01:30.9]} 37...
Bh8 {[%clk 0:01:04.5]} 38. h7 {[%clk 0:01:29]} 38... Kf6 {[%clk 0:01:02.6]} 39.
Ng3 {[%clk 0:01:25.4]} 39... Be6 {[%clk 0:00:58.1]} 40. Nf5 {[%clk 0:01:24.2]}
40... Bxf5 {[%clk 0:00:47.7]} 41. exf5 {[%clk 0:01:23.5]} 41... Kxf5 {[%clk
0:00:43.7]} 42. Rh6 {[%clk 0:01:22.8]} 42... f6 {[%clk 0:00:37.9]} 43. Bd6
{[%clk 0:01:09]} 43... Ke6 {[%clk 0:00:32.8]} 44. c5 {[%clk 0:01:05.7]} 44...
Kd5 {[%clk 0:00:31.4]} 45. Be7 {[%clk 0:01:04.4]} 45... e4+ {[%clk 0:00:21.5]}
46. Ke3 {[%clk 0:01:02.6]} 46... Ke6 {[%clk 0:00:20.8]} 47. Bd6 {[%clk
0:01:00.2]} 47... Kf5 {[%clk 0:00:19.1]} 48. c6 {[%clk 0:00:59]} 48... Ra3+
{[%clk 0:00:16.9]} 49. Kd4 {[%clk 0:00:58.8]} 49... Rd3+ {[%clk 0:00:16.3]} 50.
Kc5 {[%clk 0:00:58.8]} 50... e3 {[%clk 0:00:16.2]} 51. c7 {[%clk 0:00:51.3]}
51... Rc3+ {[%clk 0:00:16.2]} 52. Kd4 {[%clk 0:00:49.7]} 52... Rc6 {[%clk
0:00:15.8]} 53. Bg3 {[%clk 0:00:48.3]} 53... e2 {[%clk 0:00:14.6]} 54. Rh1
{[%clk 0:00:47.6]} 54... Kg5 {[%clk 0:00:14.3]} 55. Ke3 {[%clk 0:00:37.7]} 55...
f5 {[%clk 0:00:14.1]} 56. Bf4+ {[%clk 0:00:36.7]} 56... Kg6 {[%clk 0:00:14.3]}
57. Kxe2 {[%clk 0:00:35.1]} 57... Kf7 {[%clk 0:00:11.1]} 58. Rd1 {[%clk
0:00:31.5]} 58... Rc4 {[%clk 0:00:10.9]} 59. Rd8 {[%clk 0:00:22.2]} 1-0

[Event "*** Titled Tuesday Blitz"]
[Site "Chess.com"]
[Date "2021.04.20"]
[Round "7"]
[White "svilson23"]
[Black "WPWPWP-2015"]
[Result "1-0"]
[WhiteElo "2280"]
[BlackElo "2455"]
[TimeControl "180+1"]
[EndTime "11:17:19 PDT"]
[Termination "svilson23 won by resignation"]

1. e4 {[%clk 0:02:59.6]} 1... c5 {[%clk 0:02:52.9]} 2. Nf3 {[%clk 0:02:59.1]}
2... e6 {[%clk 0:02:48]} 3. c3 {[%clk 0:02:59.3]} 3... Nf6 {[%clk 0:02:45.3]} 4.
e5 {[%clk 0:02:59.9]} 4... Nc6 {[%clk 0:02:38.2]} 5. exf6 {[%clk 0:02:58.2]}
5... gxf6 {[%clk 0:02:24.7]} 6. d4 {[%clk 0:02:52.5]} 6... cxd4 {[%clk
0:02:19.6]} 7. Nxd4 {[%clk 0:02:53.4]} 7... Ne5 {[%clk 0:02:17.2]} 8. Nf3 {[%clk
0:02:48]} 8... Ng6 {[%clk 0:02:11.4]} 9. Bd3 {[%clk 0:02:42]} 9... f5 {[%clk
0:02:09.2]} 10. h4 {[%clk 0:02:41.3]} 10... Bg7 {[%clk 0:02:06.6]} 11. h5 {[%clk
0:02:40.5]} 11... Ne7 {[%clk 0:02:05.7]} 12. Bg5 {[%clk 0:02:23.9]} 12... h6
{[%clk 0:02:04.4]} 13. Bh4 {[%clk 0:02:22.5]} 13... Qb6 {[%clk 0:02:01]} 14. Qb3
{[%clk 0:02:21.2]} 14... Qc6 {[%clk 0:01:58]} 15. Nbd2 {[%clk 0:02:14.5]} 15...
Nd5 {[%clk 0:01:51.7]} 16. O-O-O {[%clk 0:02:14.6]} 16... a6 {[%clk 0:01:44.2]}
17. Nc4 {[%clk 0:02:10.6]} 17... b5 {[%clk 0:01:39.1]} 18. Nce5 {[%clk
0:02:09.8]} 18... Qc7 {[%clk 0:01:38.4]} 19. Rhe1 {[%clk 0:01:56.4]} 19... Bb7
{[%clk 0:01:27]} 20. Bg3 {[%clk 0:01:39.2]} 20... f4 {[%clk 0:01:23.8]} 21. Bh4
{[%clk 0:01:39.5]} 21... d6 {[%clk 0:01:20]} 22. Ng4 {[%clk 0:01:31.2]} 22...
O-O {[%clk 0:01:17.4]} 23. Kb1 {[%clk 0:01:25.4]} 23... f5 {[%clk 0:01:13.1]}
24. Ngh2 {[%clk 0:01:20.7]} 24... e5 {[%clk 0:01:13.3]} 25. Bxf5 {[%clk
0:01:14.8]} 25... Rxf5 {[%clk 0:00:57.2]} 26. Rxd5 {[%clk 0:01:14.2]} 26... Kh8
{[%clk 0:00:58.1]} 27. Rdd1 {[%clk 0:01:07.4]} 27... Rxh5 {[%clk 0:00:51.4]} 28.
Qe6 {[%clk 0:00:52.4]} 28... e4 {[%clk 0:00:43.8]} 29. Rxe4 {[%clk 0:00:50.8]}
29... Bxe4+ {[%clk 0:00:43]} 30. Qxe4 {[%clk 0:00:51.7]} 30... Rf8 {[%clk
0:00:38.2]} 31. Ng4 {[%clk 0:00:47.8]} 31... Qc8 {[%clk 0:00:30.3]} 32. Qg6
{[%clk 0:00:46]} 32... Qf5+ {[%clk 0:00:10.6]} 33. Qxf5 {[%clk 0:00:43.4]} 33...
Rhxf5 {[%clk 0:00:10.6]} 34. Rxd6 {[%clk 0:00:42.1]} 34... a5 {[%clk 0:00:10.2]}
35. Nxh6 {[%clk 0:00:38.5]} 35... b4 {[%clk 0:00:07.6]} 36. Nxf5 {[%clk
0:00:37.2]} 36... Rxf5 {[%clk 0:00:06.3]} 37. Ng5 {[%clk 0:00:33.6]} 37... Bf6
{[%clk 0:00:04.5]} 38. Nf7+ {[%clk 0:00:31.9]} 38... Kg7 {[%clk 0:00:04.2]} 39.
Rxf6 {[%clk 0:00:31]} 39... Rxf6 {[%clk 0:00:02.6]} 40. Bxf6+ {[%clk 0:00:31]}
40... Kxf6 {[%clk 0:00:03.5]} 41. Nd6 {[%clk 0:00:28.5]} 41... f3 {[%clk
0:00:04.4]} 42. gxf3 {[%clk 0:00:27.7]} 42... Ke5 {[%clk 0:00:05.3]} 43. Nc4+
{[%clk 0:00:27.2]} 43... Kf4 {[%clk 0:00:06.2]} 44. Nxa5 {[%clk 0:00:27.2]}
44... Kxf3 {[%clk 0:00:07]} 45. cxb4 {[%clk 0:00:26.9]} 45... Kxf2 {[%clk
0:00:07.9]} 46. b5 {[%clk 0:00:27.1]} 46... Ke3 {[%clk 0:00:08.8]} 47. b6 {[%clk
0:00:27.8]} 47... Kd4 {[%clk 0:00:09.7]} 48. b7 {[%clk 0:00:28.5]} 48... Kc5
{[%clk 0:00:10.6]} 49. b8=Q {[%clk 0:00:28.8]} 49... Kd4 {[%clk 0:00:10.5]} 50.
Qd6+ {[%clk 0:00:28.3]} 50... Ke3 {[%clk 0:00:10.3]} 51. Nc4+ {[%clk 0:00:22.2]}
51... Ke2 {[%clk 0:00:11.2]} 52. a4 {[%clk 0:00:19.2]} 52... Ke1 {[%clk
0:00:12.1]} 53. a5 {[%clk 0:00:19.6]} 53... Ke2 {[%clk 0:00:13]} 54. a6 {[%clk
0:00:20.5]} 54... Ke1 {[%clk 0:00:13.8]} 55. a7 {[%clk 0:00:21.4]} 55... Ke2
{[%clk 0:00:14.7]} 56. a8=Q {[%clk 0:00:21.9]} 56... Kf1 {[%clk 0:00:15.6]} 57.
Qf3+ {[%clk 0:00:20.8]} 57... Ke1 {[%clk 0:00:16]} 1-0